{"text_format":"1","workbook":"xlsx","n_sheets":4,"sheets":["Новый_Образец","Данные_Люди","Поручается","Лист1"],"not_rendered":{"charts":0,"images":1,"macros":1,"external_links":0,"defined_names":1,"comments":1,"pivot_tables":0},"unopened":[],"bounds":{"document_bytes":16777216,"sheet_cells":100000,"rows_first":2000,"rows_last":500,"rows_between":2000,"halvings":0,"cell_chars":16384,"cell_head_chars":4096},"cells_cut":0,"cells_raw":0,"read":"whole","date_system":"1900"}

{"sheet":"Новый_Образец","index":0,"n_rows":132,"n_cols":33,"rows_kept":132,"cut":false,"hidden":false,"merged":[[15,0,15,29],[17,0,17,29],[70,0,83,3],[70,12,83,16],[82,17,82,29],[83,17,83,29],[29,15,29,29],[30,0,30,14],[30,15,30,29],[31,0,31,14],[31,15,31,29],[32,0,32,14],[32,15,32,29],[40,15,40,16],[41,22,41,29],[41,9,41,10],[41,6,41,8],[40,0,40,4],[40,8,40,10],[52,19,52,29],[53,0,53,14],[53,15,53,18],[53,19,53,29],[46,15,49,21],[65,0,65,3],[66,4,66,11],[23,15,24,29],[46,22,46,29],[47,22,47,29],[48,22,48,29],[49,22,49,29],[46,7,46,14],[46,0,49,6],[47,7,47,14],[48,7,48,14],[44,0,44,29],[25,0,25,14],[25,15,25,29],[42,2,42,4],[42,7,42,8],[45,0,45,14],[40,13,40,14],[41,13,41,14],[42,5,42,6],[41,11,41,12],[41,15,41,16],[40,22,40,29],[40,5,40,7],[18,0,18,2],[21,0,21,4],[21,5,21,8],[21,9,21,11],[21,12,21,14],[21,21,21,24],[39,0,39,29],[38,0,38,29],[36,0,36,29],[37,0,37,29],[33,0,33,14],[33,15,33,29],[34,0,34,14],[34,15,34,29],[18,3,18,29],[20,0,20,29],[21,27,21,29],[21,15,21,20],[22,0,22,29],[29,0,29,14],[19,0,19,29],[35,0,35,5],[35,6,35,29],[23,0,24,14],[54,0,54,14],[54,15,54,18],[54,19,54,29],[55,0,55,14],[55,15,55,18],[55,19,55,29],[51,0,51,29],[52,0,52,14],[52,15,52,18],[45,15,45,29],[40,11,40,12],[1,0,1,3],[7,17,7,20],[4,0,4,29],[13,0,13,7],[12,5,12,29],[13,11,13,18],[10,19,10,29],[10,6,10,13],[11,0,11,4],[13,21,13,28],[8,9,8,16],[8,21,8,29],[9,0,9,5],[9,6,9,13],[9,14,9,18],[9,19,9,29],[7,0,7,9],[7,21,7,29],[5,0,5,29],[7,10,7,16],[1,4,1,10],[2,4,2,10],[11,6,11,13],[11,16,11,23],[66,0,66,3],[61,0,61,15],[61,16,61,29],[62,0,62,29],[63,0,63,29],[64,0,64,29],[70,4,70,11],[71,4,71,11],[2,0,2,3],[26,15,26,29],[26,0,26,14],[27,15,27,29],[28,0,28,14],[28,15,28,29],[49,7,49,14],[58,0,58,14],[58,15,58,18],[58,19,58,29],[56,0,56,14],[56,15,56,18],[56,19,56,29],[57,0,57,14],[57,15,57,18],[57,19,57,29],[77,17,77,29],[87,11,87,15],[87,16,87,20],[86,21,87,23],[85,0,85,20],[85,21,85,29],[84,0,84,29],[86,24,87,29],[86,7,87,10],[73,4,73,11],[66,22,66,29],[67,22,67,29],[67,4,67,11],[70,17,70,29],[71,17,71,29],[73,17,73,29],[75,17,75,29],[65,12,66,21],[79,17,79,29],[81,17,81,29],[72,17,72,29],[74,17,74,29],[76,17,76,29],[78,17,78,29],[80,17,80,29],[90,0,90,6],[90,7,90,10],[90,11,90,15],[90,16,90,20],[90,21,90,23],[90,24,90,29],[88,0,88,6],[89,0,89,6],[89,7,89,10],[89,11,89,15],[89,16,89,20],[88,24,88,29],[88,21,88,23],[88,16,88,20],[88,11,88,15],[88,7,88,10],[72,4,72,11],[128,2,128,12],[116,21,117,29],[116,9,117,17],[116,0,117,8],[118,0,118,8],[118,21,118,29],[118,18,118,20],[118,9,118,17],[119,0,119,8],[126,0,126,29],[127,0,127,11],[119,9,119,17],[119,18,119,20],[119,21,119,29],[120,9,120,17],[120,18,120,20],[120,21,120,29],[121,0,121,8],[121,9,121,17],[120,0,120,8],[121,18,121,20],[121,21,121,29],[116,18,117,20],[99,0,100,29],[97,24,97,29],[101,0,101,11],[101,12,101,29],[102,12,113,16],[102,17,102,29],[103,17,103,29],[104,17,104,29],[105,17,105,29],[106,17,106,29],[97,0,97,6],[97,7,97,10],[97,11,97,15],[97,16,97,20],[97,21,97,23],[108,5,108,11],[109,5,109,11],[112,17,112,29],[107,17,107,29],[113,17,113,29],[92,21,92,23],[92,24,92,29],[93,24,93,29],[96,0,96,6],[96,7,96,10],[96,11,96,15],[96,16,96,20],[96,21,96,23],[96,24,96,29],[95,0,95,6],[95,11,95,15],[95,16,95,20],[95,21,95,23],[94,11,94,15],[94,16,94,20],[94,21,94,23],[94,24,94,29],[95,24,95,29],[93,0,93,6],[68,0,68,29],[27,0,27,14],[131,13,131,29],[102,0,113,4],[103,5,103,11],[105,5,105,11],[102,5,102,11],[104,5,104,11],[106,5,106,11],[107,5,107,11],[108,17,108,29],[109,17,109,29],[110,17,110,29],[111,17,111,29],[122,0,122,8],[122,9,122,17],[122,18,122,20],[122,21,122,29],[130,2,130,12],[128,13,128,29],[89,21,89,23],[89,24,89,29],[91,0,91,6],[91,7,91,10],[130,13,130,29],[129,13,129,29],[124,0,124,29],[125,0,125,29],[115,0,115,29],[86,0,87,6],[86,11,86,20],[69,0,69,11],[69,12,69,29],[91,11,91,15],[91,16,91,20],[91,21,91,23],[95,7,95,10],[93,7,93,10],[92,0,92,6],[92,7,92,10],[94,0,94,6],[94,7,94,10],[93,11,93,15],[93,16,93,20],[93,21,93,23],[91,24,91,29],[92,11,92,15],[92,16,92,20]]}
[]
["Организация",null,null,null,"ОАО \"Апатит.\"",null,null,null,null,null,null,null,null,null,null,null,null,null,null,null,{"$f":"IF(K8=\"Не назначается\",\"   \",\"Согласовано\")","v":"Согласовано"}]
["Подразделение",null,null,null,"ЭК,   ЦЭС"]
[]
["НАРЯД-ДОПУСК №_________"]
["для работы в электроустановках"]
[]
["Ответственному руководителю работ:",null,null,null,null,null,null,null,null,null,"Горбачев В.И. гр V",null,null,null,null,null,null,"Допускающему:",null,null,null,"Оперативному персоналу АРЭС"]
[null,null,null,null,null,null,null,null,null,"(фамилия, инициалы)",null,null,null,null,null,null,null,null,null,null,null,"(фамилия, инициалы)"]
["Производителю работ:",null,null,null,null,null,"Кириллов Р.Л. гр IV",null,null,null,null,null,null,null,"наблюдаещему:"]
[null,null,null,null,null,null,"(фамилия, инициалы)",null,null,null,null,null,null,null,null,null,null,null,null,"(фамилия, инициалы)"]
["с членами бригады:"]
[null,null,null,null,null,"(фамилия, инициалы)"]
[]
[]
[]
[]
[]
["поручается:"]
[]
[]
["Работу начать: дата",null,null,null,null,{"$f":"TODAY()","v":"2013-04-16"},null,null,null,"время",null,null,"08:00:00",null,null,"Работу закончить: дата",null,null,null,null,null,{"$f":"IF(AG22,F22,F22+14)","v":"2013-04-30"},null,null,null,"время",null,"17:00:00",null,null,null,null,false]
["Меры по подготовке рабочих мест"]
["Наименование электроустановок, в которых нужно провести отключения и установить заземления",null,null,null,null,null,null,null,null,null,null,null,null,null,null,"Что должно быть отключено и где заземлено"]
[]
[1,null,null,null,null,null,null,null,null,null,null,null,null,null,null,2]
[]
[]
[]
[]
[]
[]
[]
[]
[]
["Отдельные указания:"]
[]
[]
[]
[]
["Наряд выдал: дата",null,null,null,null,{"$f":"F22","v":"2013-04-16"},null,null,"время",null,null,"08:00:00",null,"Подпись",null,null,null,"Фамилия, инициалы",null,null,null,null,{"$f":"H47","v":"Федоричев А.С. гр V"}]
["Наряд продлил по: дата",null,null,null,null,null,null,null,null,"время",null,null,null,"Подпись",null,null,null,"Фамилия, инициалы"]
["Дата",null,null,null,null,"время"]
[]
["Регестрация целевого инструктажа, проводимого выдающим наряд"]
["Цеолевой инструктаж провел",null,null,null,null,null,null,null,null,null,null,null,null,null,null,"Цеолевой инструктаж получил"]
["Работник,                                  выдавший наряд",null,null,null,null,null,null,"Федоричев А.С. гр V",null,null,null,null,null,null,null,"Ответственный руководитель работ (производитель работ, наблюдающий)",null,null,null,null,null,null,{"$f":"IF(K8=\"Не назначается\",G10,K8)","v":"Горбачев В.И. гр V"}]
[null,null,null,null,null,null,null,"(фамилия, инициалы)",null,null,null,null,null,null,null,null,null,null,null,null,null,null,"(фамилия, инициалы)"]
[]
[null,null,null,null,null,null,null,"(подпись)",null,null,null,null,null,null,null,null,null,null,null,null,null,null,"(подпись)"]
[]
["Разрешение на подготовку рабочих мест и на допуск к выполнению работ"]
["Разрешение на подготовку рабочих мест                                                                       и на допуск к выполнению работ выдал                                                                                                     (должность, фамилия или подпись)",null,null,null,null,null,null,null,null,null,null,null,null,null,null,"Дата, время",null,null,null,"Подпись работника, получившего                                      разрешение на подготовку рабочих мест и на допуск к выполнению работ"]
[1,null,null,null,null,null,null,null,null,null,null,null,null,null,null,2,null,null,null,3]
[]
[]
[]
[]
[]
[]
["Выдан ключ б\\н:",null,null,null,null,{"$f":"G10","v":"Кириллов Р.Л. гр IV"}]
["Рабочие места подготовлены. Под напряжением остались:"]
[]
[]
[]
[null,null,null,null,null,null,null,null,null,null,null,null,"Ответственный руководитель работ                (производитель работ, наблюдающий)"]
["Допускающий"]
[null,null,null,null,"(подпись)",null,null,null,null,null,null,null,null,null,null,null,null,null,null,null,null,null,"(подпись)"]
["Регестрация целевого инструктажа, проводимого допускающим при первичном допуске"]
["Цеолевой инструктаж провел",null,null,null,null,null,null,null,null,null,null,null,"Цеолевой инструктаж получил"]
["Допускающий",null,null,null,null,null,null,null,null,null,null,null,"Ответственный руководитель работ производитель работ (наблюдающий), члены бригады",null,null,null,null,{"$f":"IF(K8=\"Не назначается\",G10,K8)","v":"Горбачев В.И. гр V"}]
[null,null,null,null,"(фамилия, инициалы)",null,null,null,null,null,null,null,null,null,null,null,null,"(фамилия, инициалы) (подпись)"]
[null,null,null,null,null,null,null,null,null,null,null,null,null,null,null,null,null,{"$f":"IF(K8=\"Не назначается\",G12,G10)","v":"Кириллов Р.Л. гр IV"}]
[null,null,null,null,"(подпись)",null,null,null,null,null,null,null,null,null,null,null,null,"(фамилия, инициалы) (подпись)"]
[null,null,null,null,null,null,null,null,null,null,null,null,null,null,null,null,null,{"$f":"IF(K8=\"Не назначается\",IF(Q12=0,\"  \",Q12),IF(G12=0,\"  \",G12))","v":"  "}]
[null,null,null,null,null,null,null,null,null,null,null,null,null,null,null,null,null,"(фамилия, инициалы) (подпись)"]
[null,null,null,null,null,null,null,null,null,null,null,null,null,null,null,null,null,{"$f":"IF(K8=\"Не назначается\",IF(A14=0,\"  \",A14),IF(Q12=0,\"  \",Q12))","v":"  "}]
[null,null,null,null,null,null,null,null,null,null,null,null,null,null,null,null,null,"(фамилия, инициалы) (подпись)"]
[null,null,null,null,null,null,null,null,null,null,null,null,null,null,null,null,null,{"$f":"IF(K8=\"Не назначается\",IF(L14=0,\"  \",L14),IF(A14=0,\"  \",A14))","v":"  "}]
[null,null,null,null,null,null,null,null,null,null,null,null,null,null,null,null,null,"(фамилия, инициалы) (подпись)"]
[null,null,null,null,null,null,null,null,null,null,null,null,null,null,null,null,null,{"$f":"IF(K8=\"Не назначается\",IF(V14=0,\"  \",V14),IF(L14=0,\"  \",L14))","v":"  "}]
[null,null,null,null,null,null,null,null,null,null,null,null,null,null,null,null,null,"(фамилия, инициалы) (подпись)"]
[null,null,null,null,null,null,null,null,null,null,null,null,null,null,null,null,null,{"$f":"IF(K8=\"Не назначается\",\"  \",IF(V14=0,\"  \",V14))","v":"  "}]
[null,null,null,null,null,null,null,null,null,null,null,null,null,null,null,null,null,"(фамилия, инициалы) (подпись)"]
["Ежедневный допуск к работе и время её окончания"]
["Бригада получила целевой инструктаж и допущена на подготовленное рабочее место",null,null,null,null,null,null,null,null,null,null,null,null,null,null,null,null,null,null,null,null,"Работа закончена, бригада удалена"]
["Наименование                                         рабочего места",null,null,null,null,null,null,"Дата, время",null,null,null,"фамилия, инициалы и подпись",null,null,null,null,null,null,null,null,null,"Дата, время",null,null,"Производитеь работ (наблюдающий) (фамилия, инициалы) (подпись)"]
[null,null,null,null,null,null,null,null,null,null,null,"Допускающего",null,null,null,null,"Производителя работ                                                   (наблюдающего)"]
[1,null,null,null,null,null,null,2,null,null,null,3,null,null,null,null,4,null,null,null,null,5,null,null,6]
[]
[]
[]
[]
[]
[]
[]
[]
[]
[]
["Регестрация целевого инструктажа, проводимого ответственным руководителем                                                                                    (производителем работ, наблюдающим)"]
[]
["Цеолевой инструктаж провел",null,null,null,null,null,null,null,null,null,null,null,"Цеолевой инструктаж получил"]
["Ответственный руководитель работ (производитель работ, наблюдающий)",null,null,null,null,{"$f":"IF(K8=\"Не назначается\",\"----------\",K8)","v":"Горбачев В.И. гр V"},null,null,null,null,null,null,"Члены бригады",null,null,null,null,{"$f":"IF(R73=0,\"  \",R73)","v":"Кириллов Р.Л. гр IV"}]
[null,null,null,null,null,"(фамилия, инициалы)",null,null,null,null,null,null,null,null,null,null,null,"(фамилия, инициалы) (подпись)"]
[null,null,null,null,null,null,null,null,null,null,null,null,null,null,null,null,null,{"$f":"IF(R75=0,\"  \",R75)","v":"  "}]
[null,null,null,null,null,"(подпись)",null,null,null,null,null,null,null,null,null,null,null,"(фамилия, инициалы) (подпись)"]
[null,null,null,null,null,{"$f":"IF(T10=0,G10,T10)","v":"Кириллов Р.Л. гр IV"},null,null,null,null,null,null,null,null,null,null,null,{"$f":"IF(R77=0,\"  \",R77)","v":"  "}]
[null,null,null,null,null,"(фамилия, инициалы)",null,null,null,null,null,null,null,null,null,null,null,"(фамилия, инициалы) (подпись)"]
[null,null,null,null,null,null,null,null,null,null,null,null,null,null,null,null,null,{"$f":"IF(R79=0,\"  \",R79)","v":"  "}]
[null,null,null,null,null,"(подпись)",null,null,null,null,null,null,null,null,null,null,null,"(фамилия, инициалы) (подпись)"]
[null,null,null,null,null,null,null,null,null,null,null,null,null,null,null,null,null,{"$f":"IF(R81=0,\"  \",R81)","v":"  "}]
[null,null,null,null,null,null,null,null,null,null,null,null,null,null,null,null,null,"(фамилия, инициалы) (подпись)"]
[null,null,null,null,null,null,null,null,null,null,null,null,null,null,null,null,null,{"$f":"IF(R83=0,\"  \",R83)","v":"  "}]
[null,null,null,null,null,null,null,null,null,null,null,null,null,null,null,null,null,"(фамилия, инициалы) (подпись)"]
[]
["Изменения в составе бригады"]
["Введен в состав бригады                              (фамилия, инициалы, группа)",null,null,null,null,null,null,null,null,"Выведен из состава бригады                              (фамилия, инициалы, группа)",null,null,null,null,null,null,null,null,"Дата,                                             время",null,null,"Разрешил (подпись),                                  (фамилия инициалы)"]
[]
[1,null,null,null,null,null,null,null,null,2,null,null,null,null,null,null,null,null,3,null,null,4]
[]
[]
[]
[]
[]
["Работа полностью закончена, бригада удалена, заземления, установленные бригадой, сняты, сообщено (кому):"]
[]
["(должность, фамилия, инициалы)"]
["Дата______________время__________"]
[null,null,"Производитель работ (наблюдающий)"]
[null,null,null,null,null,null,null,null,null,null,null,null,null,"(фамилия, инициалы) (подпись)"]
[null,null,"Ответственный руководитель работ"]
[null,null,null,null,null,null,null,null,null,null,null,null,null,"(фамилия, инициалы) (подпись)"]

{"sheet":"Данные_Люди","index":1,"n_rows":21,"n_cols":18,"rows_kept":21,"cut":false,"hidden":true,"merged":[[0,0,0,2],[0,4,0,6],[0,8,0,10],[0,12,0,14],[0,16,0,18]]}
["Ответственный",null,null,null,"Производитель",null,null,null,"Члены бригады",null,null,null,"Наблюдающий",null,null,null,"Механизмы"]
[1,"Не назначается",null,null,1,"Немиров П.А. гр V",null,null,1,"Немиров П.А. гр V",null,null,1,null,null,null,1,"Автокран КС45 719."]
[2,"Горбачев В.И. гр V",null,null,2,"Рычагов Ю.П. гр V",null,null,2,"Рычагов Ю.П. гр V",null,null,2,null,null,null,2,"Автокран КАМАЗ-53212."]
[3,"Мищенков С.В. гр V",null,null,3,"Кириллов Р.Л. гр IV",null,null,3,"Кириллов Р.Л. гр IV",null,null,3,null,null,null,3,"Водитель автокрана Демин А.А. гр III."]
[4,"Леонтьев Д.А. гр V",null,null,4,"Самлюков С.В. гр IV",null,null,4,"Самлюков С.В. гр IV",null,null,4,null,null,null,4]
[5,"Федоричев А.С. гр V",null,null,5,"Васильев Д.Н. гр IV",null,null,5,"Васильев Д.Н. гр IV",null,null,5,null,null,null,5]
[6,"Зарудний Д.А. гр V",null,null,6,"Коваленко Д.А. гр IV",null,null,6,"Коваленко Д.А. гр IV",null,null,6,null,null,null,6]
[7,"Шепелев Ю.В. гр V",null,null,7,"Питеряков А.Н. гр V",null,null,7,"Питеряков А.Н. гр V",null,null,7,null,null,null,7]
[8,"Иванов Н.Г. гр V",null,null,8,"Федюхин Д.С. гр II",null,null,8,"Федюхин Д.С. гр II",null,null,8,null,null,null,8]
[9,null,null,null,9,"Григорьев А.А. гр III",null,null,9,"Григорьев А.А. гр III",null,null,9,null,null,null,9]
[10,null,null,null,10,"Каблуков С.В. гр II",null,null,10,"Каблуков С.В. гр II",null,null,10,null,null,null,10]
[11,null,null,null,11,null,null,null,11,null,null,null,11,null,null,null,11]
[12,null,null,null,12,"Леонтьев Д.А. гр V",null,null,12,"Леонтьев Д.А. гр V",null,null,12,null,null,null,12]
[13,null,null,null,13,"Корчевский И.Н. гр V",null,null,13,"Корчевский И.Н. гр V",null,null,13,null,null,null,13]
[14,null,null,null,14,"Чернышов В.А. гр V",null,null,14,"Чернышов В.А. гр V",null,null,14,null,null,null,14]
[15,null,null,null,15,"Полетаев А.И. гр IV",null,null,15,"Полетаев А.И. гр IV",null,null,15,null,null,null,15]
[16,null,null,null,16,"Береславец Д.Б. гр IV",null,null,16,"Береславец Д.Б. гр IV",null,null,16,null,null,null,16]
[17,null,null,null,17,"Константинов Е.Ю. гр III",null,null,17,"Константинов Е.Ю. гр III",null,null,17,null,null,null,17]
[18,null,null,null,18,"Афанасьев П.В. гр IV",null,null,18,"Афанасьев П.В. гр IV",null,null,18,null,null,null,18]
[null,null,null,null,19,"Куцуренко В.В. гр III",null,null,19,"Куцуренко В.В. гр III",null,null,null,null,null,null,19]
[null,null,null,null,null,null,null,null,20,null,null,null,null,null,null,null,20]

{"sheet":"Поручается","index":2,"n_rows":102,"n_cols":2,"rows_kept":102,"cut":false,"hidden":true,"merged":[[84,0,84,1],[52,0,52,1],[0,0,0,1]]}
["Поручается"]
[1,"Текущий ремонт оборудования.  Опробование защит."]
[2,"Текущий ремонт оборудования.  ЧВК защит."]
[3,"Текущий ремонт оборудования.  Восстоновление защит."]
[4,"Капитальный ремонт оборудования.  Опробование защит.  В/В испытания выключателя."]
[5,"Капитальный ремонт оборудования.  ЧВК защит.  В/В испытания выключателя."]
[6,"Капитальный ремонт оборудования.  Восстоновление защит.  В/В испытания выключателя."]
[7,"Опробование защит тр-ра."]
[8,"Капитальный ремонт оборудования.  В/В испытания оборудования. силового кабеля. секции шин."]
[9,"Проверка цепей сигнализации."]
[10]
[11,"Прокладка и монтаж контрольного кабеля."]
[12,"Демонтаж, монтаж оборудования.  В/В испытания оборудования."]
[13,"Фазировка кабеля."]
[14]
[15,"Замена щитовых приборов."]
[16,"Замена счетчиков электрической энергии."]
[17,"Замена щитовых приборов и счетчиков электрической энергии."]
[18,"Замена ЭКМ и Термосигнализаторов."]
[19]
[20]
[21]
[22]
[23]
[24]
[25]
[26]
[27]
[28]
[29]
[30]
[31]
[32]
[33]
[34]
[]
[]
[]
[]
[]
[]
[]
[]
[]
[]
[]
[]
[]
[]
[]
[]
[]
["Отдельные указания"]
[1,"Разрешено производителю работ произвести опробование выключателя ()."]
[2,"Одновременное производство работ на двух рабочих местах одного присоединения."]
[3,"Одновременное производство работ на нескольких рабочих местах разных присоединений."]
[4]
[5,"Отключить силовой кабель 6 кВ  (), на период В/В испытаний выключателя."]
[6,"Отключить ОПН и силовой кабель 6 кВ  (), на период В/В испытаний выключателя."]
[7,"Отключить силовой кабель 6 кВ  (), на период замера параметров тр-ра."]
[8]
[9,"Разрешено производителю работ отключить РЗ  (), на период замера параметров тр-ров тока."]
[10,"Разрешено производителю работ отключить РЗ  (), на период В/В испытаний выключателя."]
[11,"регулировки вката тележки. тр-ров напряжения. переходного сопротивления разъединителей."]
[12]
[13,"С временным снятием заземления, отключить РЗ-6  (), на период замера параметров тр-ра."]
[14,"С временным снятием заземления, отключить РЗ-6  () и  РЗ-0,4  (), на период замера параметров тр-ра."]
[15,"С временным снятием заземления, отключить РЗ-6  (), снять заземление на стороне 0,4 кВ"]
[16,"(), на период замера параметров тр-ра."]
[17]
[null,"Оборудование находится в зоне наведенного напряжения."]
[null,"При работе на высоте применять предохранительный пояс."]
[]
[null,"Работу выполнять под непосредственным руководством Ответственного за безопасное производство"]
[null,"работ подъемными механизмами Очик Д.А. гр V."]
[null,"Старшим стропальщиком назначается Анохин А.М.  Удостоверение № 22313."]
[]
[]
[]
[]
[]
[]
[]
[]
["Что должно быть отключено и где заземлено"]
[1,"РШ.  Включить РЗ."]
[2,"РШ-6.  Включить РЗ-6."]
[3,"Выкатить тележку в ремонтное положение. Включить РЗ."]
[4,"Выкатить тележку в ремонтное положение. Включить РЗ-6."]
[5]
[6,"Установить заземление между "]
[7,"Установить заземление на стороне 0,4 кВ."]
[8,"Установить заземление на силовой кабель."]
[9,"Установить накладку на АВ-0,1."]
[10]
[11,"Не требуется."]
[12]
[13]
[14]
[15]
[16]
[17]

{"sheet":"Лист1","index":3,"n_rows":0,"n_cols":0,"rows_kept":0,"cut":false,"hidden":false,"merged":[]}